fUST/lending_fUST_20250115
["ID","MTS","AMOUNT","RATE_DAILY","PERIOD"]
[348946730,1736885439259,-500.0,0.00022054,3]
[348946732,1736885439269,-500.0,0.00022054,3]
[348946734,1736885439278,-500.0,0.00022054,3]
[348946736,1736885439287,-1724.78,0.00022054,3]
[348946738,1736885439297,-500.0,0.00022054,3]
[348946740,1736885439307,-500.0,0.00022054,3]
[348946743,1736885439318,-500.0,0.00022054,3]
[348946744,1736885439329,-850.27,0.00022054,3]
[348946747,1736885439349,-500.0,0.00022054,3]
[348946749,1736885439359,-500.0,0.00022054,3]
[348946751,1736885439368,-500.0,0.00022054,3]
[348946752,1736885439378,-500.0,0.00022054,3]
[348946754,1736885439392,-791.14,0.00022054,3]
[348946757,1736885439404,-577.75,0.00022054,3]
[348946758,1736885439414,-500.0,0.00022054,3]
[348946760,1736885439424,-870.6,0.00022054,3]
[348946762,1736885439434,-500.0,0.00022073,2]
[348946765,1736885439445,-500.0,0.00022073,2]
[348946767,1736885439459,-632.34916507,0.00022073,2]
[348946768,1736885439469,-621.28118645,0.00022073,2]
[348946770,1736885439479,-14560.52343671,0.000221,2]
[348946772,1736885439491,-14560.52343669,0.000221,2]
[348946774,1736885439501,-14560.52343669,0.00022137,2]
[348946776,1736885439511,-248.87901181,0.00022173,2]
[348946778,1736885439521,-348.79927873,0.00022173,2]
[348946780,1736885439531,-544.32877917,0.00022173,2]
[348946782,1736885439541,-500.0,0.00022173,2]
[348946784,1736885439550,-266.91720907,0.00022173,2]
[348946786,1736885439559,-558.04068707,0.00022173,2]
[348946789,1736885439572,-500.0,0.00022173,2]
[348946790,1736885439582,-227.61760254,0.00022173,2]
[348946793,1736885439591,-500.0,0.00022173,2]
[348946794,1736885439601,-502.87359446,0.00022173,2]
[348946796,1736885439610,-500.0,0.00022173,2]
[348946798,1736885439620,-248.15711224,0.00022177,2]
[348946800,1736885439629,-204.2938959,0.00022186,2]
[348946802,1736885439638,-500.0,0.00022191,3]
[348946804,1736885439648,-500.0,0.00022191,3]
[348946806,1736885439658,-500.0,0.00022191,3]
[348946808,1736885439667,-500.0,0.00022191,3]
[348946810,1736885439676,-500.0,0.00022191,3]
[348946812,1736885439686,-500.0,0.00022191,3]
[348946814,1736885439695,-500.0,0.00022191,3]
[348946816,1736885439705,-500.0,0.00022191,3]
[348946818,1736885439714,-500.0,0.00022191,3]
[348946820,1736885439724,-500.0,0.00022191,3]
[348946822,1736885439734,-500.0,0.00022191,3]
[348946824,1736885439743,-503.6419197,0.00022191,3]
[348946827,1736885439753,-500.0,0.00022191,3]
[348946829,1736885439763,-500.0,0.00022191,3]
[348946830,1736885439772,-701.87,0.00022191,3]
[348946833,1736885439782,-500.0,0.00022191,3]
[348946835,1736885439793,-500.0,0.00022191,3]
[348946837,1736885439802,-500.0,0.00022191,3]
[348946839,1736885439813,-500.0,0.00022191,3]
[348946841,1736885439823,-500.0,0.00022191,3]
[348946843,1736885439832,-500.0,0.00022191,3]
[348946845,1736885439841,-500.0,0.00022191,3]
[348946847,1736885439850,-500.0,0.00022191,3]
[348946859,1736885439963,-500.0,0.00022191,3]
[348946861,1736885439973,-500.0,0.00022191,3]
[348946863,1736885439984,-500.0,0.00022191,3]
[348946865,1736885439993,-500.0,0.00022191,3]
[348946867,1736885440003,-500.0,0.00022191,3]
[348946869,1736885440013,-560.85530698,0.00022191,3]
[348946871,1736885440025,-551.84,0.00022191,3]
[348946873,1736885440034,-500.0,0.00022191,3]
[348946877,1736885440044,-500.0,0.00022191,3]
[348946879,1736885440053,-500.0,0.00022191,3]
[348946881,1736885440063,-1800.5,0.00022191,3]
[348946883,1736885440072,-734.64,0.00022191,3]
[348946885,1736885440082,-500.0,0.00022191,3]
[348946887,1736885440091,-500.0,0.00022191,3]
[348946890,1736885440101,-500.0,0.00022191,3]
[348946893,1736885440111,-500.0,0.00022191,3]
[348946895,1736885440122,-591.16,0.00022191,3]
[348946897,1736885440132,-578.14,0.00022191,3]
[348946899,1736885440143,-551.66,0.00022191,3]
[348946901,1736885440152,-500.0,0.00022191,3]
[348946903,1736885440162,-500.0,0.00022191,3]
[348946905,1736885440172,-500.0,0.00022191,3]
[348946907,1736885440181,-500.0,0.00022191,3]
[348946909,1736885440191,-4325.25,0.00022191,3]
[348946911,1736885440200,-500.0,0.00022191,3]
[348946913,1736885440209,-500.0,0.00022191,3]
[348946915,1736885440219,-500.0,0.00022191,3]
[348946917,1736885440228,-532.36,0.00022191,3]
[348946919,1736885440237,-500.0,0.00022191,3]
[348946921,1736885440247,-500.0,0.00022191,3]
[348946923,1736885440256,-578.53598964,0.00022191,3]
[348946925,1736885440266,-500.0,0.00022191,3]
[348946927,1736885440276,-500.0,0.00022191,3]
[348946929,1736885440286,-500.0,0.00022191,3]
[348946931,1736885440296,-576.63299612,0.00022191,3]
[348946933,1736885440306,-669.57,0.00022191,3]
[348946936,1736885440317,-356.38326123,0.00022191,3]
[348946937,1736885440327,-500.0,0.00022191,3]
[348946939,1736885440336,-500.0,0.00022191,3]
[348946941,1736885440346,-500.0,0.00022191,3]
[348946944,1736885440356,-500.0,0.00022191,3]
[348946945,1736885440366,-500.0,0.00022191,3]
[348946947,1736885440375,-500.0,0.00022191,3]
[348946949,1736885440385,-500.0,0.00022191,3]
[348946951,1736885440395,-444.75720542,0.00022191,3]
[348946953,1736885440404,-500.0,0.00022191,3]
[348946955,1736885440414,-152.89505656,0.00022191,3]
[348946957,1736885440423,-500.0,0.00022191,3]
[348946959,1736885440433,-500.0,0.00022191,3]
[348946961,1736885440445,-500.0,0.00022191,3]
[348946963,1736885440456,-500.0,0.00022191,3]
[348946965,1736885440465,-500.0,0.00022191,3]
[348946967,1736885440475,-500.0,0.00022191,3]
[348946969,1736885440484,-500.0,0.00022191,3]
[348946971,1736885440494,-500.0,0.00022191,3]
[348946973,1736885440504,-500.0,0.00022191,3]
[348946975,1736885440513,-463.73156061,0.00022191,3]
[348946978,1736885440523,-515.0,0.00022191,3]
[348946979,1736885440534,-500.0,0.00022191,3]
[348946981,1736885440544,-500.0,0.00022191,3]
[348946984,1736885440553,-500.0,0.00022191,3]
[348946986,1736885440563,-500.0,0.00022191,3]
[348946988,1736885440573,-500.0,0.00022191,3]
[348946989,1736885440583,-500.0,0.00022191,3]
[348946991,1736885440592,-545.57,0.00022191,3]
[348946993,1736885440602,-500.0,0.00022191,3]
[348946995,1736885440612,-500.0,0.00022191,3]
[348946998,1736885440622,-500.0,0.00022191,3]
[348947000,1736885440632,-500.0,0.00022191,3]
[348947002,1736885440641,-500.0,0.00022191,3]
[348947004,1736885440651,-500.0,0.00022191,3]
[348947006,1736885440661,-500.0,0.00022191,3]
[348947008,1736885440671,-500.0,0.00022191,3]
[348947010,1736885440680,-500.0,0.00022191,3]
[348947011,1736885440689,-500.0,0.00022191,3]
[348947014,1736885440699,-500.0,0.00022191,3]
[348947016,1736885440708,-1367.82,0.00022191,3]
[348947018,1736885440717,-500.0,0.00022191,3]
[348947020,1736885440727,-500.0,0.00022191,3]
[348947022,1736885440737,-500.0,0.00022191,3]
[348947023,1736885440746,-3724.56,0.00022191,3]
[348947025,1736885440756,-500.0,0.00022191,3]
[348947028,1736885440765,-500.0,0.00022191,3]
[348947030,1736885440775,-500.0,0.00022191,3]
[348947032,1736885440785,-500.0,0.00022191,3]
[348947034,1736885440795,-686.17,0.00022191,3]
[348947036,1736885440804,-500.0,0.00022191,3]
[348947038,1736885440814,-500.0,0.00022191,3]
[348947040,1736885440823,-1017.72,0.00022191,2]
[348947042,1736885440833,-500.0,0.00022191,3]
[348947044,1736885440842,-963.75,0.00022191,3]
[348947046,1736885440852,-18448.78,0.00022191,3]
[348947048,1736885440861,-500.0,0.00022191,3]
[348947049,1736885440871,-500.0,0.00022191,3]
[348947052,1736885440880,-500.0,0.00022191,3]
[348947054,1736885440893,-761.29,0.00022191,3]
[348947056,1736885440903,-500.0,0.00022191,3]
[348947058,1736885440913,-500.0,0.00022191,3]
[348947060,1736885440922,-2127.51,0.00022191,3]
[348947062,1736885440931,-500.0,0.00022191,3]
[348947063,1736885440941,-507.38027149,0.00022191,3]
[348947066,1736885440950,-8246.05,0.00022191,2]
[348947068,1736885440960,-500.0,0.00022191,3]
[348947070,1736885440970,-607.27,0.00022191,3]
[348947072,1736885440979,-500.0,0.00022191,3]
[348947074,1736885440988,-859.05,0.00022191,3]
[348947076,1736885440998,-500.0,0.00022191,3]
[348947077,1736885441007,-500.0,0.00022191,3]
[348947079,1736885441016,-500.0,0.00022191,3]
[348947081,1736885441026,-500.0,0.00022191,3]
[348947083,1736885441035,-500.0,0.00022191,3]
[348947085,1736885441044,-500.0,0.00022191,3]
[348947087,1736885441054,-500.0,0.00022191,3]
[348947089,1736885441064,-2391.12,0.00022191,3]
[348947091,1736885441073,-500.0,0.00022191,3]
[348947093,1736885441083,-500.0,0.00022191,3]
[348947095,1736885441092,-500.0,0.00022191,3]
[348947097,1736885441102,-500.0,0.00022191,3]
[348947099,1736885441113,-500.0,0.00022191,3]
[348947101,1736885441122,-500.0,0.00022191,3]
[348947103,1736885441132,-500.0,0.00022191,3]
[348947105,1736885441142,-500.0,0.00022191,3]
[348947107,1736885441152,-500.0,0.00022191,3]
[348947109,1736885441162,-2436.93,0.00022191,3]
[348947111,1736885441172,-500.0,0.00022191,3]
[348947113,1736885441182,-507.93396735,0.00022191,3]
[348947115,1736885441191,-625.68,0.00022191,3]
[348947117,1736885441201,-500.0,0.00022191,3]
[348947119,1736885441210,-3095.32,0.00022191,3]
[348947121,1736885441220,-500.0,0.00022191,3]
[348947123,1736885441230,-186.62072035,0.00022191,3]
[348947125,1736885441239,-763.77,0.00022191,3]
[348947127,1736885441253,-500.0,0.00022191,3]
[348947129,1736885441262,-500.0,0.00022191,3]
[348947131,1736885441271,-500.0,0.00022191,3]
[348947133,1736885441280,-500.0,0.00022191,3]
[348947135,1736885441290,-596.45643304,0.00022191,3]
[348947137,1736885441300,-1918.78,0.00022191,3]
[348947139,1736885441310,-566.45,0.00022191,3]
[348947141,1736885441320,-702.74181808,0.00022191,7]
[348947143,1736885441329,-500.0,0.00022191,3]
[348947145,1736885441339,-839.63,0.00022191,3]
[348947147,1736885441351,-500.0,0.00022191,3]
[348947150,1736885441361,-500.0,0.00022191,3]
[348947152,1736885441370,-518.5084489,0.00022191,3]
[348947154,1736885441380,-500.0,0.00022191,3]
[348947156,1736885441390,-1724.78,0.00022191,3]
[348947158,1736885441399,-500.0,0.00022191,3]
[348947160,1736885441409,-500.0,0.00022191,3]
[348947162,1736885441418,-500.0,0.00022191,3]
[348947164,1736885441428,-850.27,0.00022191,3]
[348947166,1736885441438,-500.0,0.00022191,3]
[348947168,1736885441453,-500.0,0.00022191,3]
[348947170,1736885441471,-500.0,0.00022191,3]
[348947172,1736885441483,-500.0,0.00022191,3]
[348947174,1736885441493,-791.14,0.00022191,3]
[348947176,1736885441502,-577.75,0.00022191,3]
[348947178,1736885441512,-235.0,0.00022192,2]
[348947180,1736885441522,-14560.52343669,0.00022228,2]
[348947182,1736885441533,-3301.0,0.00022258,4]
[348947183,1736885441542,-620.0,0.000223,2]
[348947184,1736885441551,-154.11,0.00022328,2]
[348947185,1736885441561,-85943.81499571,0.00022328,3]
[348947195,1736885441677,-35227.41891936,0.00022328,3]
[348947227,1736885441969,-500.0,0.00021912,2]
[348947229,1736885441979,-500.0,0.00021917,3]
[348947231,1736885441988,-500.0,0.00022191,3]
[348947233,1736885441998,-870.6,0.00022191,3]
[348947235,1736885442008,-6465.7605258,0.00022328,3]
[348947238,1736885442028,-3782.50501255,0.00022328,3]
[348947240,1736885442041,-6970.87960091,0.00022328,3]
[348947243,1736885442057,-979.07793737,0.00022328,3]
[348947245,1736885442073,-15728.51057822,0.00022328,3]
[348947277,1736885442360,-2822.00744672,0.00022328,3]
[348947279,1736885442372,-6497.85768602,0.00022328,3]
[348947281,1736885442383,-27599.29213806,0.00022328,3]
[348947283,1736885442393,-500.0,0.00022328,3]
[348947285,1736885442402,-500.0,0.00022328,3]
[348947287,1736885442411,-500.0,0.00022328,3]
[348947289,1736885442421,-500.0,0.00022328,3]
[348947291,1736885442430,-500.0,0.00022328,3]
[348947293,1736885442441,-500.0,0.00022328,3]
[348947295,1736885442455,-500.0,0.00022328,3]
[348947297,1736885442465,-500.0,0.00022328,3]
[348947299,1736885442475,-500.0,0.00022328,3]
[348947301,1736885442484,-500.0,0.00022328,3]
[348947303,1736885442494,-636.44,0.00022328,3]
[348947305,1736885442504,-390.66540288,0.00022328,3]
[348947307,1736885442514,-500.0,0.00022328,3]
[348947309,1736885442524,-701.87,0.00022328,3]
[348947311,1736885442534,-500.0,0.00022328,3]
[348947313,1736885442543,-512.96755601,0.00022328,3]
[348947315,1736885442552,-500.0,0.00022328,3]
[348947317,1736885442562,-500.0,0.00022328,3]
[348947319,1736885442576,-500.0,0.00022328,3]
[348947321,1736885442586,-500.0,0.00022328,3]
[348947322,1736885442595,-500.0,0.00022328,3]
[348947324,1736885442604,-500.0,0.00022328,3]
[348947326,1736885442615,-500.0,0.00022328,3]
[348947328,1736885442625,-500.0,0.00022328,3]
[348947330,1736885442635,-535.01,0.00022328,3]
[348947332,1736885442645,-528.3,0.00022328,3]
[348947334,1736885442654,-500.0,0.00022328,3]
[348947336,1736885442664,-500.0,0.00022328,3]
[348947338,1736885442673,-500.0,0.00022328,3]
[348947340,1736885442683,-1800.5,0.00022328,3]
[348947342,1736885442692,-734.64,0.00022328,3]
[348947344,1736885442702,-500.0,0.00022328,3]
[348947346,1736885442712,-500.0,0.00022328,3]
[348947348,1736885442722,-430.70019458,0.00022328,3]
[348947350,1736885442732,-578.14,0.00022328,3]
[348947352,1736885442742,-551.66,0.00022328,3]
[348947354,1736885442752,-506.4,0.00022328,3]
[348947356,1736885442762,-500.0,0.00022328,3]
[348947358,1736885442771,-500.0,0.00022328,3]
[348947360,1736885442781,-500.0,0.00022328,3]
[348947362,1736885442790,-4325.25,0.00022328,3]
[348947364,1736885442800,-500.0,0.00022328,3]
[348947366,1736885442809,-500.0,0.00022328,3]
[348947368,1736885442821,-630.94,0.00022328,3]
[348947370,1736885442831,-532.36,0.00022328,3]
[348947372,1736885442840,-454.15,0.00022328,3]
[348947373,1736885442849,-500.0,0.00022328,3]
[348947375,1736885442859,-500.0,0.00022328,3]
[348947377,1736885442868,-500.0,0.00022328,3]
[348947379,1736885442878,-500.0,0.00022328,3]
[348947381,1736885442887,-669.57,0.00022328,3]
[348947383,1736885442897,-500.0,0.00022328,3]
[348947385,1736885442907,-500.0,0.00022328,3]
[348947387,1736885442917,-500.0,0.00022328,3]
[348947389,1736885442928,-500.0,0.00022328,3]
[348947391,1736885442938,-500.0,0.00022328,3]
[348947393,1736885442947,-500.0,0.00022328,3]
[348947395,1736885442956,-500.0,0.00022328,3]
[348947397,1736885442966,-500.0,0.00022328,3]
[348947399,1736885442975,-500.0,0.00022328,3]
[348947401,1736885442984,-616.89,0.00022328,3]
[348947402,1736885442994,-500.0,0.00022328,3]
[348947404,1736885443003,-500.0,0.00022328,3]
[348947406,1736885443012,-500.0,0.00022328,3]
[348947408,1736885443021,-500.0,0.00022328,3]
[348947410,1736885443031,-500.0,0.00022328,3]
[348947412,1736885443040,-500.0,0.00022328,3]
[348947414,1736885443049,-515.0,0.00022328,3]
[348947416,1736885443059,-500.0,0.00022328,3]
[348947418,1736885443070,-500.0,0.00022328,3]
[348947420,1736885443080,-500.0,0.00022328,3]
[348947422,1736885443089,-500.0,0.00022328,3]
[348947425,1736885443099,-500.0,0.00022328,3]
[348947427,1736885443109,-500.0,0.00022328,3]
[348947429,1736885443119,-545.57,0.00022328,3]
[348947431,1736885443129,-381.03952581,0.00022328,3]
[348947433,1736885443139,-500.0,0.00022328,3]
[348947436,1736885443148,-597.78,0.00022328,3]
[348947438,1736885443157,-500.0,0.00022328,3]
[348947441,1736885443167,-500.0,0.00022328,3]
[348947445,1736885443177,-500.0,0.00022328,3]
[348947449,1736885443186,-500.0,0.00022328,3]
[348947452,1736885443195,-500.0,0.00022328,3]
[348947454,1736885443205,-1367.82,0.00022328,3]
[348947457,1736885443214,-500.0,0.00022328,3]
[348947460,1736885443223,-500.0,0.00022328,3]
[348947463,1736885443233,-500.0,0.00022328,3]
[348947465,1736885443242,-518.16,0.00022328,3]
[348947467,1736885443251,-3724.56,0.00022328,3]
[348947469,1736885443261,-500.0,0.00022328,3]
[348947471,1736885443270,-500.0,0.00022328,3]
[348947473,1736885443279,-500.0,0.00022328,3]
[348947475,1736885443289,-500.0,0.00022328,3]
[348947476,1736885443298,-500.0,0.00022328,3]
[348947478,1736885443307,-500.0,0.00022328,3]
[348947480,1736885443317,-686.17,0.00022328,3]
[348947482,1736885443327,-1017.72,0.00022328,2]
[348947484,1736885443336,-500.0,0.00022328,3]
[348947486,1736885443345,-963.75,0.00022328,3]
[348947488,1736885443354,-18448.78,0.00022328,3]
[348947490,1736885443364,-500.0,0.00022328,3]
[348947492,1736885443373,-500.0,0.00022328,3]
[348947494,1736885443383,-500.0,0.00022328,3]
[348947496,1736885443392,-761.29,0.00022328,3]
[348947498,1736885443401,-500.0,0.00022328,3]
[348947500,1736885443411,-500.0,0.00022328,3]
[348947502,1736885443420,-2127.51,0.00022328,3]
[348947504,1736885443430,-424.95199054,0.00022328,3]
[348947508,1736885443469,-75.04800946,0.00022328,3]
[348947510,1736885443478,-4395.95032497,0.00022328,2]
[348947512,1736885443491,-3850.09967503,0.00022328,2]
[348947514,1736885443501,-500.0,0.00022328,3]
[348947516,1736885443510,-607.27,0.00022328,3]
[348947518,1736885443520,-500.0,0.00022328,3]
[348947520,1736885443531,-859.05,0.00022328,3]
[348947521,1736885443541,-500.0,0.00022328,3]
[348947523,1736885443551,-500.0,0.00022328,3]
[348947525,1736885443561,-500.0,0.00022328,3]
[348947527,1736885443571,-300.0,0.00022328,3]
[348947528,1736885443581,-500.0,0.00022328,3]
[348947530,1736885443590,-500.0,0.00022328,3]
[348947532,1736885443599,-2391.12,0.00022328,3]
[348947534,1736885443608,-500.0,0.00022328,3]
[348947536,1736885443619,-381.03952581,0.00022328,3]
[348947537,1736885443628,-547.34470406,0.00022328,3]
[348947539,1736885443637,-500.0,0.00022328,3]
[348947541,1736885443646,-500.0,0.00022328,3]
[348947543,1736885443655,-500.0,0.00022328,3]
[348947544,1736885443665,-500.0,0.00022328,3]
[348947546,1736885443674,-500.0,0.00022328,3]
[348947548,1736885443683,-500.0,0.00022328,3]
[348947550,1736885443693,-2436.93,0.00022328,3]
[348947552,1736885443702,-500.0,0.00022328,3]
[348947554,1736885443711,-625.68,0.00022328,3]
[348947555,1736885443721,-500.0,0.00022328,3]
[348947557,1736885443731,-3095.32,0.00022328,3]
[348947559,1736885443741,-500.0,0.00022328,3]
[348947561,1736885443751,-763.77,0.00022328,3]
[348947563,1736885443760,-500.0,0.00022328,3]
[348947564,1736885443769,-500.0,0.00022328,3]
[348947566,1736885443779,-637.37708059,0.00022328,3]
[348947568,1736885443788,-500.0,0.00022328,3]
[348947570,1736885443799,-461.82941913,0.00022328,3]
[348947572,1736885443810,-1456.95058087,0.00022328,3]
[348947573,1736885443821,-566.45,0.00022328,3]
[348947575,1736885443830,-500.0,0.00022328,3]
[348947577,1736885443839,-839.63,0.00022328,3]
[348947579,1736885443848,-500.0,0.00022328,3]
[348947580,1736885443857,-500.0,0.00022328,3]
[348947582,1736885443867,-1724.78,0.00022328,3]
[348947584,1736885443876,-500.0,0.00022328,3]
[348947586,1736885443885,-500.0,0.00022328,3]
[348947587,1736885443894,-850.27,0.00022328,3]
[348947589,1736885443903,-500.0,0.00022328,3]
[348947591,1736885443911,-500.0,0.00022328,3]
[348947593,1736885443920,-500.0,0.00022328,3]
[348947594,1736885443929,-791.14,0.00022328,3]
[348947596,1736885443938,-577.75,0.00022328,3]
[348947598,1736885443948,-500.0,0.00022328,3]
[348947600,1736885443957,-870.6,0.00022328,3]
[348947601,1736885443966,-160.0,0.00022368,4]
[348947603,1736885443975,-151.0,0.000224,8]
[348947605,1736885443985,-420.0,0.00022446,2]
[348947607,1736885443994,-500.0,0.00022465,3]
[348947609,1736885444004,-500.0,0.00022465,3]
[348947611,1736885444014,-500.0,0.00022465,3]
[348947613,1736885444023,-500.0,0.00022465,3]
[348947614,1736885444033,-500.0,0.00022465,3]
[348947616,1736885444042,-500.0,0.00022465,3]
[348947618,1736885444052,-500.0,0.00022465,3]
[348947620,1736885444061,-500.0,0.00022465,3]
[348947622,1736885444072,-500.0,0.00022465,3]
[348947624,1736885444081,-701.87,0.00022465,3]
[348947626,1736885444090,-500.0,0.00022465,3]
[348947627,1736885444099,-500.0,0.00022465,3]
[348947629,1736885444109,-500.0,0.00022465,3]
[348947631,1736885444118,-500.0,0.00022465,3]
[348947633,1736885444128,-500.0,0.00022465,3]
[348947635,1736885444138,-209.24,0.00022465,3]
[348947637,1736885444147,-500.0,0.00022465,3]
[348947638,1736885444158,-254.16,0.00022465,3]
[348947640,1736885444168,-500.0,0.00022465,3]
[348947642,1736885444177,-1800.5,0.00022465,3]
[348947644,1736885444186,-734.64,0.00022465,3]
[348947646,1736885444195,-500.0,0.00022465,3]
[348947648,1736885444204,-346.70714266,0.00022465,3]
[348947649,1736885444214,-578.14,0.00022465,3]
[348947651,1736885444224,-551.66,0.00022465,3]
[348947653,1736885444233,-500.0,0.00022465,3]
[348947655,1736885444243,-500.0,0.00022465,3]
[348947657,1736885444252,-500.0,0.00022465,3]
[348947659,1736885444262,-4325.25,0.00022465,3]
[348947661,1736885444271,-500.0,0.00022465,3]
[348947662,1736885444280,-532.36,0.00022465,3]
[348947664,1736885444289,-500.0,0.00022465,3]
[348947666,1736885444298,-500.0,0.00022465,3]
[348947668,1736885444308,-500.0,0.00022465,3]
[348947670,1736885444319,-500.0,0.00022465,3]
[348947672,1736885444327,-669.57,0.00022465,3]
[348947674,1736885444336,-500.0,0.00022465,3]
[348947675,1736885444346,-500.0,0.00022465,3]
[348947677,1736885444356,-500.0,0.00022465,3]
[348947679,1736885444365,-500.0,0.00022465,3]
[348947681,1736885444374,-500.0,0.00022465,3]
[348947683,1736885444384,-500.0,0.00022465,3]
[348947685,1736885444393,-500.0,0.00022465,3]
[348947687,1736885444402,-500.0,0.00022465,3]
[348947688,1736885444412,-500.0,0.00022465,3]
[348947690,1736885444421,-500.0,0.00022465,3]
[348947692,1736885444431,-500.0,0.00022465,3]
[348947694,1736885444440,-500.0,0.00022465,3]
[348947696,1736885444452,-500.0,0.00022465,3]
[348947706,1736885444462,-500.0,0.00022465,3]
[348947708,1736885444568,-515.0,0.00022465,3]
[348947710,1736885444578,-500.0,0.00022465,3]
[348947712,1736885444587,-500.0,0.00022465,3]
[348947714,1736885444597,-500.0,0.00022465,3]
[348947716,1736885444606,-500.0,0.00022465,3]
[348947718,1736885444615,-500.0,0.00022465,3]
[348947719,1736885444624,-500.0,0.00022465,3]
[348947721,1736885444634,-545.57,0.00022465,3]
[348947723,1736885444643,-500.0,0.00022465,3]
[348947725,1736885444653,-500.0,0.00022465,3]
[348947727,1736885444662,-500.0,0.00022465,3]
[348947728,1736885444671,-608.20472479,0.00022465,3]
[348947730,1736885444680,-500.0,0.00022465,3]
[348947732,1736885444690,-500.0,0.00022465,3]
[348947734,1736885444699,-1367.82,0.00022465,3]
[348947736,1736885444709,-500.0,0.00022465,3]
[348947738,1736885444718,-500.0,0.00022465,3]
[348947740,1736885444727,-500.0,0.00022465,3]
[348947741,1736885444737,-3724.56,0.00022465,3]
[348947743,1736885444746,-500.0,0.00022465,3]
[348947745,1736885444756,-357.03,0.00022465,3]
[348947747,1736885444765,-500.0,0.00022465,3]
[348947749,1736885444774,-500.0,0.00022465,3]
[348947751,1736885444784,-500.0,0.00022465,3]
[348947753,1736885444793,-500.0,0.00022465,3]
[348947755,1736885444802,-686.17,0.00022465,3]
[348947756,1736885444811,-1017.72,0.00022465,2]
[348947758,1736885444822,-500.0,0.00022465,3]
[348947760,1736885444831,-963.75,0.00022465,3]
[348947762,1736885444840,-18448.78,0.00022465,3]
[348947764,1736885444850,-500.0,0.00022465,3]
[348947766,1736885444859,-500.0,0.00022465,3]
[348947767,1736885444868,-500.0,0.00022465,3]
[348947769,1736885444878,-761.29,0.00022465,3]
[348947771,1736885444887,-501.03190148,0.00022465,3]
[348947773,1736885444895,-500.0,0.00022465,3]
[348947775,1736885444905,-2127.51,0.00022465,3]
[348947777,1736885444914,-500.0,0.00022465,3]
[348947779,1736885444923,-8246.05,0.00022465,2]
[348947780,1736885444932,-500.0,0.00022465,3]
[348947782,1736885444941,-607.27,0.00022465,3]
[348947784,1736885444951,-500.0,0.00022465,3]
[348947786,1736885444960,-859.05,0.00022465,3]
[348947788,1736885444969,-500.0,0.00022465,3]
[348947790,1736885444978,-500.0,0.00022465,3]
[348947792,1736885444987,-500.0,0.00022465,3]
[348947793,1736885444996,-500.0,0.00022465,3]
[348947795,1736885445006,-500.0,0.00022465,3]
[348947797,1736885445015,-2391.12,0.00022465,3]
[348947799,1736885445025,-500.0,0.00022465,3]
[348947801,1736885445035,-500.0,0.00022465,3]
[348947803,1736885445044,-500.0,0.00022465,3]